Cogmind - Beta 13 @@@ ROGUE MODE // 2024.04.05 @ 00:58:19 Player: A Moose Result: Destroyed self with Advanced EMP Blaster Performance ------------- Evolutions (2) 1000 Regions Visited (5) 1000 Robots Destroyed (84) 420 Value Destroyed (2562) 2562 Prototype IDs (12) 240 Alien Tech Used (0) 0 Bonus (304) 304 TOTAL SCORE: 5526 Bonus ------- High Alert Combat Kills 304 Cogmind --------- Core Integrity 0/550 Matter 373/400 Energy 290/350 System Corruption 3% Temperature Cool (12) Movement Hovering (106) Ox1 Location -8/Storage Parts ------- > --- POWER (2) -------- Light Nuclear Core Improved Deuterium Engine > --- PROPULSION (3) --- Aerolev Unit Aerolev Unit > --- UTILITY (4) ------ Small Storage Unit Medium Matter Pod Improved Signal Interpreter Hacking Suite > --- WEAPON (2) ------- Enhanced Autogun Advanced EMP Blaster > --- INVENTORY (8) ---- Improved VTOL Module Weight Redist. System Enhanced Autogun EMP Blaster Scythe Peak State ------------ > --- POWER ------------ Light Nuclear Core Light Angular Momentum Engine > --- PROPULSION ------- Armored Huge Wheel Improved VTOL Module > --- UTILITY ---------- Medium Storage Unit Experimental Sensor Array Improved Signal Interpreter Hacking Suite > --- WEAPON ----------- Enhanced Autogun Enhanced Autogun > --- INVENTORY -------- Improved Deuterium Engine Armored Huge Wheel Improved VTOL Module Medium Matter Pod Enhanced Autogun Improved Grenade Launcher Improved Grenade Launcher Scythe [Rating: 47] Favorites ----------- Power Light Nuclear Core Engine Ion Engine Power Core Light Nuclear Core Propulsion Aerolev Unit Treads Light Treads Leg Aluminum Leg Wheel Armored Huge Wheel Hover Unit Aerolev Unit Flight Unit Improved VTOL Module Utility Small Storage Unit Device Experimental Sensor Array Storage Small Storage Unit Processor Improved Signal Interpreter Hackware Hacking Suite Protection Medium Armor Plating Weapon Medium Laser Energy Gun Medium Laser Ballistic Gun Enhanced Autogun Ballistic Cannon Battle Cannon Launcher Improved Grenade Launcher Special Weapon Mining Laser Slashing Weapon Scythe Build | -11 -10 -10 -10 -8 -8 ------- Run | Yrd Mat Min Sub Mat Sto Slots Evolved 4 | . . . . 4 . Power 1 | . . . . 1 . Propulsion 1 | . . . . 1 . Utility 2 | . . . . 2 . Weapon . | . . . . . . Parts Attached 77 | 6 7 1 9 31 23 Power 14 | 1 2 . 1 7 3 Engine 11 | 1 2 . 1 5 2 Core 3 | . . . . 2 1 Reactor . | . . . . . . Propulsion 14 | 2 2 . 2 4 4 Treads 2 | 2 . . . . . Leg 6 | . 2 . 2 2 . Wheel 2 | . . . . 1 1 Hover 3 | . . . . . 3 Flight 1 | . . . . 1 . Utility 13 | 1 1 . . 8 3 Device 4 | . . . . 4 . Storage 5 | 1 . . . 2 2 Processor 1 | . . . . 1 . Hackware 2 | . 1 . . . 1 Protection 1 | . . . . 1 . Artifact . | . . . . . . Weapon 36 | 2 2 1 6 12 13 Energy Gun 3 | 2 . . . 1 . Energy Cannon . | . . . . . . Ballistic Gun 13 | . 2 . 2 4 5 Ballistic Cannon 2 | . . . 1 1 . Launcher 12 | . . 1 . 5 6 Special Weapon 3 | . . . 3 . . Impact Weapon . | . . . . . . Slashing Weapon 3 | . . . . 1 2 Piercing Weapon . | . . . . . . Special Melee Weapon . | . . . . . . Unidentified Prototypes 4 | . . . . 2 2 Parts Lost 16 | . . . 3 9 4 Power 7 | . . . . 5 2 Propulsion 1 | . . . . . 1 Utility 4 | . . . . 3 1 Weapon 4 | . . . 3 1 . Highest Loss Streak 5 | . . . 2 5 2 To Critical Strikes . | . . . . . . Average Slot Usage (%) 90 | . 89 100 98 83 94 Engine 10 | . 14 14 14 9 7 Core 4 | . . . . 6 8 Treads 1 | . 11 . . . . Leg 13 | . 16 28 28 11 . Wheel 2 | . . . . 5 . Hover 5 | . . . . . 25 Device 5 | . . . . 9 8 Storage 13 | . 14 14 14 14 9 Processor 3 | . . . . 4 9 Hackware 7 | . 4 14 14 4 8 Energy Gun 3 | . 17 14 1 . . Ballistic Gun 6 | . 10 3 7 6 5 Ballistic Cannon 1 | . . . 3 2 . Launcher 4 | . . 10 3 3 7 Special Weapon 1 | . . . 10 . . Slashing Weapon 1 | . . . . 3 1 Naked Turns . | . . . . . . Heaviest Build 34 | 14 14 15 17 34 32 Greatest Support 66 | 40 40 20 40 66 34 Greatest Overweight (x) 3 | . 1 . . 1 3 Average Overweight (x) . | . . . . . . Largest Inventory Capacity 10 | 8 8 8 8 10 10 Average Capacity 8 | 7 8 8 8 8 8 Most Carried 10 | 2 8 8 8 10 10 Average Carried 7 | . 4 7 7 7 7 Final Capacity 10 | 8 8 8 8 10 8 Final Carried 10 | 1 8 8 8 10 5 Class Distribution -------------------- 49% | Mutant 42% | Scavenger-Mutant 7% | Derelict-Mutant Dominant Class ---------------- Mutant | -10/Materials Scavenger-Mutant | -10/Mines Mutant | -10/Subcaves Mutant | -8/Materials Scavenger-Mutant | -8/Storage Resources | -11 -10 -10 -10 -8 -8 ----------- Run | Yrd Mat Min Sub Mat Sto Matter Collected 1998 | 260 234 12 193 840 459 Remotely . | . . . . . . Salvage Created 2803 | 76 492 . 114 1273 848 Parts 167 | 1 23 . 10 81 52 Haulers Intercepted 7 | . 1 . . 4 2 Recyclers Shooed 4 | . . . . 1 3 Parts Field Recycled . | . . . . . . Retrieved Matter . | . . . . . . Parts Self-Destructed 15 | . . . 15 . . Prevented . | . . . . . . Kills | -11 -10 -10 -10 -8 -8 ------- Run | Yrd Mat Min Sub Mat Sto Combat Hostiles Destroyed 57 | . 10 . 5 31 11 Melee 3 | . . . . 3 . Guns 19 | . 9 . 1 4 5 Cannons 7 | . . . 3 4 . AOE 25 | . . . 1 20 4 Classes Destroyed 10 | 1 4 . 1 4 . Worker 7 | . 2 . . 4 1 Builder 2 | . . . . 1 1 Hauler 7 | . 1 . . 4 2 Recycler 5 | 1 . . . 1 3 Operator 3 | . 1 . . 1 1 Watcher 3 | . . . . 3 . Swarmer 7 | . . . . 4 3 Grunt 34 | . 10 . . 20 4 Sentry 11 | . . . . 7 4 Subdweller 5 | . . . 5 . . Best Kill Streak 23 | 1 2 . 2 23 7 Combat Bots Only 18 | . 2 . 2 18 3 Max Kills in Single Turn 4 | 1 1 . 2 4 3 Gunslinging . | . . . . . . Exploded 4 | . . . 1 4 1 Melee 1 | . . . . 1 . Uniques/NPCs Destroyed . | . . . . . . Combat | -11 -10 -10 -10 -8 -8 -------- Run | Yrd Mat Min Sub Mat Sto Hostile Shots Fired 283 | . 78 . 24 147 34 Missed 98 | . 26 . 10 47 15 Damage Taken 3073 | . 680 . 356 1534 503 Core 767 | . 150 . 55 364 198 Absorbed by Shields . | . . . . . . Core Remaining (%) 59 | 100 . . 18 . . Volleys Fired 209 | 2 72 . 23 79 33 Largest 2 | 2 2 . 2 2 2 Hottest 200 | 100 100 . 200 75 69 Shots Fired 362 | 4 142 . 31 130 55 Gun 259 | 4 142 . 7 76 30 Cannon 37 | . . . 15 22 . Launcher 59 | . . . 2 32 25 Special 7 | . . . 7 . . Kinetic 195 | . 50 . 20 95 30 Thermal 108 | 4 92 . 9 3 . Explosive 34 | . . . 2 32 . Electromagnetic 25 | . . . . . 25 Robot Hit Streak 13 | 4 8 . 10 13 7 Robot Miss Streak 6 | . 5 . 2 6 4 Penetration Max . | . . . . . . Secondary Targets 4 | . 4 . . . . Max Gunslinging Chain 1 | . 1 . . . . Shots Hit Robots 207 | 4 73 . 22 73 35 Core Hits 149 | 2 29 . 8 82 28 Critical Kills 2 | . 1 . . 1 . Critical Parts Destroyed . | . . . . . . Critical Strikes 11 | 1 4 . 1 4 1 Burn 4 | 1 3 . . . . Destroy 2 | . 1 . . 1 . Blast 4 | . . . 1 3 . Sever 1 | . . . . . 1 Melee Attacks 16 | . . . . 9 7 Impact . | . . . . . . Slashing 16 | . . . . 9 7 Piercing . | . . . . . . Sneak Attacks 2 | . . . . 1 1 Combat Hostiles . | . . . . . . Follow-up Attacks . | . . . . . . Damage Inflicted 7264 | 51 891 . 548 4226 1548 Guns 2076 | 51 891 . 102 724 308 Cannons 534 | . . . 298 236 . Explosions 4210 | . . . 78 3021 1111 Melee 349 | . . . . 220 129 Ramming 25 | . . . . 25 . Kinetic 1870 | . 265 . 388 909 308 Thermal 924 | 51 626 . 82 51 114 Explosive 3099 | . . . 78 3021 . Electromagnetic 997 | . . . . . 997 Impact . | . . . . . . Slashing 349 | . . . . 220 129 Piercing . | . . . . . . Highest Corruption 3 | . . . . 3 3 Average Corruption 3 | . . . . 3 3 Corruption Purged . | . . . . . . Corruption Blocked . | . . . . . . Effects 29 | . . . . 14 15 Message Errors 3 | . . . . 1 2 Matter Fused 9 | . . . . 5 4 Heat Flow Errors 2 | . . . . 1 1 Energy Discharges 5 | . . . . . 5 Data Loss (minor) 4 | . . . . 4 . Data Loss (major) 1 | . . . . . 1 Misfires 2 | . . . . 1 1 Alerts 2 | . . . . 1 1 Weapon Failures 1 | . . . . 1 . Overload Shots . | . . . . . . Overflow Damage 163 | . . . . 134 29 Projectiles . | . . . . . . Explosions 163 | . . . . 134 29 Melee . | . . . . . . Knockbacks 3 | . . . 2 1 . Impact . | . . . . . . Kinetic 3 | . . . 2 1 . Secondary . | . . . . . . Self-Inflicted Damage 226 | . . . . 19 207 Shots 12 | . . . . 1 11 Rammed 4 | . . . . 4 . Targets Rammed 4 | . . . . 4 . Kicked . | . . . . . . Crushed . | . . . . . . Highest Temperature 368 | 78 368 . . 179 139 Average Temperature 63 | 40 93 . . 35 39 Received Heat Transfer 1200 | . 411 . 6 675 108 Effects 4 | . 4 . . . . Shutdowns 1 | . 1 . . . . Matter Decay 1 | . 1 . . . . Short Circuit 1 | . 1 . . . . Damage (minor) 1 | . 1 . . . . Siege Activations . | . . . . . . Robots Corrupted 2 | . . . . . 2 Combat Hostiles 2 | . . . . . 2 Parts Fried 6 | . . . . . 6 Impact Corruptions . | . . . . . . Robots Melted 1 | . 1 . . . . Combat Hostiles 1 | . 1 . . . . Parts Melted 1 | . 1 . . . . Heat Transferred 2852 | 222 2072 . 297 111 150 Parts Sabotaged . | . . . . . . Parts Stolen . | . . . . . . Parts Stripped . | . . . . . . Power Chain Reactions 7 | . . . . . 7 Alert | -11 -10 -10 -10 -8 -8 ------- Run | Yrd Mat Min Sub Mat Sto Peak Influence 768 | 5 258 78 . 768 526 Initial 288 | . 3 78 . . 288 Average 353 | 2 139 78 . 513 315 Maximum Alert Level 3 | . 1 . . 3 2 Low Security (%) 35 | 100 67 100 . 19 17 Level 1 24 | . 32 . . 4 64 Level 2 31 | . . . . 57 18 Level 3 8 | . . . . 17 . Level 4 . | . . . . . . Level 5 . | . . . . . . High Security . | . . . . . . Max Security . | . . . . . . Squads Dispatched 9 | . 3 . . 4 2 Investigation 2 | . 1 . . 1 . Extermination . | . . . . . . Reinforcement 4 | . 2 . . 1 1 Assault . | . . . . . . Garrison 3 | . . . . 2 1 Intercept . | . . . . . . Searches Triggered . | . . . . . . Construction Impeded 1 | . . . . 1 . Haulers Reinforced . | . . . . . . Active Scanning Responses . | . . . . . . Cargo Convoy Interrupts . | . . . . . . Stealth | -11 -10 -10 -10 -8 -8 --------- Run | Yrd Mat Min Sub Mat Sto Distress Signals 5 | . 1 . . 3 1 Communications Jammed . | . . . . . . Distress Signals . | . . . . . . Times Spotted 81 | . 21 . 6 40 14 Peak Tracking Total 10 | . 3 . 3 10 3 Tactical Retreats 3 | . 1 . . 2 . Traps | -11 -10 -10 -10 -8 -8 ------- Run | Yrd Mat Min Sub Mat Sto Traps Triggered 4 | . 1 . 1 . 2 Indirectly 1 | . . . . . 1 Trap Hack Attempts . | . . . . . . Triggered . | . . . . . . Disarmed . | . . . . . . Reprogrammed 2 | . 2 . . . . Reused 1 | . 1 . . . . Traps Extracted . | . . . . . . Installed . | . . . . . . Triggered 1 | . 1 . . . . Machines | -11 -10 -10 -10 -8 -8 ---------- Run | Yrd Mat Min Sub Mat Sto Machines Disabled 12 | . 1 . . 6 5 Max in Single Turn 2 | . 1 . . 2 2 Machines Repaired . | . . . . . . Machines Dismantled . | . . . . . . Machines Sabotaged . | . . . . . . Overloaded Fab Kills . | . . . . . . Hacking | -11 -10 -10 -10 -8 -8 --------- Run | Yrd Mat Min Sub Mat Sto Machines Accessed 19 | . 4 . . 11 4 Terminals 14 | . 4 . . 7 3 Fabricators . | . . . . . . Repair Stations . | . . . . . . Recycling Units 3 | . . . . 2 1 Scanalyzers 2 | . . . . 2 . Garrison Access . | . . . . . . Total Hacks 59 | . 13 . . 32 14 Successful 33 | . 6 . . 20 7 Failed 26 | . 7 . . 12 7 Catastrophic 1 | . . . . . 1 Database Lockouts . | . . . . . . Manual . | . . . . . . Terminals 43 | . 13 . . 19 11 Fabricators . | . . . . . . Repair Stations . | . . . . . . Recycling Units 8 | . . . . 5 3 Scanalyzers 8 | . . . . 8 . Garrison Access . | . . . . . . Terminal Hacks 23 | . 6 . . 11 6 Record 1 | . . . . . 1 Robot Analysis 2 | . . . . 1 1 Prototype ID Bank 4 | . 1 . . 2 1 Open Door 1 | . . . . . 1 Branch Access Points 2 | . 1 . . 1 . Emergency Access Points 1 | . . . . 1 . Terminal Index 1 | . . . . 1 . Alert Level 3 | . 1 . . 1 1 Locate Traps 2 | . 1 . . 1 . Reprogram Traps 1 | . 1 . . . . Dispatch Records 1 | . . . . 1 . Investigation Status 1 | . . . . 1 . Reinforcement Status 1 | . . . . . 1 Zone Layout 2 | . 1 . . 1 . Fabricator Hacks . | . . . . . . Repair Station Hacks . | . . . . . . Recycling Unit Hacks 5 | . . . . 4 1 Process 1 | . . . . 1 . Report Inventory 3 | . . . . 2 1 Retrieve Matter 1 | . . . . 1 . Scanalyzer 5 | . . . . 5 . Insert Component 3 | . . . . 3 . Analyze 2 | . . . . 2 . Garrison Access Hacks . | . . . . . . Unauthorized Hacks . | . . . . . . Terminals . | . . . . . . Fabricators . | . . . . . . Repair Stations . | . . . . . . Recycling Units . | . . . . . . Scanalyzers . | . . . . . . Garrison Access . | . . . . . . Data Cores Recovered 1 | . . . . 1 . Used . | . . . . . . Hacking Detections 14 | . 4 . . 7 3 Full Trace Events 1 | . . . . 1 . Feedback Events . | . . . . . . Feedback Blocked . | . . . . . . Robot Schematics Acquired . | . . . . . . Robots Built . | . . . . . . Authchips . | . . . . . . Time . | . . . . . . Total Robot Build Rating . | . . . . . . Part Schematics Acquired 2 | . . . . 2 . Parts Built . | . . . . . . Authchips . | . . . . . . Time . | . . . . . . Total Part Build Rating . | . . . . . . Parts Repaired . | . . . . . . Time . | . . . . . . Parts Recycled . | . . . . . . Recycled Matter 339 | . . . . 339 . Retrieved Matter 346 | . . . . 346 . Retrieved Components . | . . . . . . Parts Scanalyzed 3 | . . . . 3 . Part Schematics Acquired 2 | . . . . 2 . Parts Damaged 1 | . . . . 1 . Bothacking | -11 -10 -10 -10 -8 -8 ------------ Run | Yrd Mat Min Sub Mat Sto Used RIF Installer . | . . . . . . Robots Hacked . | . . . . . . Non-combat . | . . . . . . Combat . | . . . . . . Robot Hacks Applied . | . . . . . . Relay Couplers Released . | . . . . . . Fabnet Peak Effective % . | . . . . . . Robots Rewired . | . . . . . . Allies Hacked . | . . . . . . Hacks Repelled . | . . . . . . Allies | -11 -10 -10 -10 -8 -8 -------- Run | Yrd Mat Min Sub Mat Sto Total Allies . | . . . . . . Largest Group . | . . . . . . Highest-Rated Group . | . . . . . . Highest-Rated Ally . | . . . . . . Total Orders . | . . . . . . Ally Attacks . | . . . . . . Total Damage . | . . . . . . Kills . | . . . . . . Allies Corrupted . | . . . . . . Allies Melted . | . . . . . . Intel | -11 -10 -10 -10 -8 -8 ------- Run | Yrd Mat Min Sub Mat Sto Robot Analysis Total 2 | . . . . 1 1 Derelict Logs Recovered . | . . . . . . Drone Launches . | . . . . . . Drone Recoveries . | . . . . . . Exploration | -11 -10 -10 -10 -8 -8 ------------- Run | Yrd Mat Min Sub Mat Sto Turns Passed 3453 | 82 571 154 578 1373 695 Spaces Moved 2119 | 42 241 125 385 891 435 Core 3 | 3 . . . . . Treads 106 | 39 67 . . . . Legs 1003 | . 174 125 385 319 . Wheels 579 | . . . . 572 7 Hover 428 | . . . . . 428 Flight . | . . . . . . Fastest Speed 42 | 50 120 120 120 100 42 Average Speed 111 | 152 132 120 126 116 71 Slowest Speed 240 | 160 190 120 140 136 240 Overloaded Moves . | . . . . . . Propulsion Burnouts . | . . . . . . Robots Hopped . | . . . . . . Cave-ins Triggered . | . . . . . . Exploration Rate (%) 35 | 4 43 42 21 68 37 Regions Visited 5 Branch Regions 3 Pre-discovered Areas 1 | . . 1 . . . Known Exits Taken 2 | . 1 . . 1 . Unknown Exits Taken 3 | 1 . 1 1 . . Scrap Searched 8 | . . 1 7 . . Spaces Dug . | . . . . . . Terrain Destroyed 185 | . . . 14 137 34 Melee . | . . . . . . Projectile 6 | . . . . 6 . AOE 179 | . . . 14 131 34 Terrain Rammed . | . . . . . . Walls Destroyed . | . . . . . . Machines Disabled . | . . . . . . Actions | -11 -10 -10 -10 -8 -8 --------- Run | Yrd Mat Min Sub Mat Sto Total 2847 | 56 353 129 437 1104 768 Wait 315 | . 21 1 7 36 250 Move 2114 | 41 240 124 384 890 435 Hop . | . . . . . . Pick Up 62 | 7 10 1 6 29 9 Fast Attach 12 | . . 1 3 8 . Attach 29 | 6 3 . 2 9 9 Detach 2 | . . . . . 2 Swap 36 | . 4 . 4 14 14 Drop 48 | . 3 2 8 26 9 Fire 209 | 2 72 . 23 79 33 Melee 16 | . . . . 9 7 Ram 4 | . . . . 4 . Kick . | . . . . . . Crush . | . . . . . . Escape Stasis . | . . . . . . Rewire . | . . . . . . Trap . | . . . . . . Miscellaneous . | . . . . . . Route ------- -11/Scrapyard -10/Materials -10/Mines -10/Subcaves (discovered 2 exits: *Mat x2) -8/Materials -8/Storage History --------- Turn | Location | Event 19 | -11/Scrapyard | Discovered new exit (range 16) 83 | -11/Scrapyard | Entered Materials 303 | -10/Materials | Build established: Mutant 534 | -10/Materials | Discovered new exit (range 15) 563 | -10/Materials | Core integrity fell below 50% 564 | -10/Materials | Identified exit to Mines 654 | -10/Materials | Entered Mines 655 | -10/Mines | Learned location of Storage (-8) 715 | -10/Mines | Found a damaged Exp. Sensor Array with a note attached 718 | -10/Mines | Found Prototype Device 757 | -10/Mines | Build established: Scavenger-Mutant 790 | -10/Mines | Discovered new exit (range 16) 808 | -10/Mines | Entered Subcaves 1297 | -10/Subcaves | Core integrity fell below 20% 1362 | -10/Subcaves | Discovered new exit (range 8) 1367 | -10/Subcaves | Discovered new exit (range 2) 1386 | -10/Subcaves | Entered Materials 1386 | -8/Materials | Evolved 4 slots: Power x1, Propulsion x1, Utility x2 1655 | -8/Materials | Garrison activated, responded to threat 1718 | -8/Materials | Lost 5 parts (3p2u) 1735 | -8/Materials | Destroyed 18 combat bots 1839 | -8/Materials | Identified Exp. Sensor Array 2039 | -8/Materials | Core integrity fell below 50% 2286 | -8/Materials | Build established: Mutant 2651 | -8/Materials | Identified exit to Storage 2726 | -8/Materials | Garrison activated, responded to threat 2759 | -8/Materials | Entered Storage 3093 | -8/Storage | Build established: Scavenger-Mutant 3285 | -8/Storage | Core integrity fell below 20% 3399 | -8/Storage | Garrison activated, responded to threat 3454 | -8/Storage | Destroyed self with Advanced EMP Blaster Last Messages --------------- Y-45 Defender destroyed. Lgt. Nuclear Core destroyed. Exp. Sensor Array destroyed. Y-45 Defender misfires. Y-45 Defender system terminally corrupted. Heat Sink fried. Lgt. Armor Plating fried. G-47 Trooper misfires. Imp. Heat Sink fried. G-47 Trooper destroyed. Acquired 41 matter. Acquired 43 matter. Acquired 47 matter. G-47 Trooper shuts down. Acquired 7 matter. U-05 Engineer lays Concrete. Chain reaction triggered in Corrupted Imp. Ion Engine. Aerolev Unit destroyed. Destroyed Aerolev Unit. Map ----- +----------------------------------------------------+ | !!! #????? ?? #???????????????????????????? | | !!] #??#?? ? #??????????????#####????????? | | !! #??# """ """ #????########### #????????? | | ]] #??# """ """ #????# T #????????? | | "" """ #??# """ """ #????# ##### ### #????????? | | Y """ #??# """ """ #????# #???# #?#####????????? | | "" """ #??# " " #????+ #####+####???????????? | | #??# #????# # #???????????? | | ###+###########" ####### # #???????????? | | # "["" #???????????? | | + "" [" #???????????? | | % # """ =" #???????????? | | ######+#####" "######+##### "[*""" #???????????? | | ??# # ["## # "[["" #???????????? | | ??# "= %=### """ # """" #???????????? | | ??# "[%="#?# [ """ # #???????????? | | ??# " =%"#?# """ ##########???????????? | | ??# # ##?# #????????????????????? | | ??# """ """ # #??# """ #????????????????????? | | ??# """ """?# #??# """ #????????????????????? | | ?? """ """?# #??# """ #????????????????????? | | ??##?#####??# ##?# #????????????????????? | | ????????????# T#?##########????????????????????? | | ???????????##= ##???####?##?????????????????????? | | ???????????# %!%######;;;#;###???????????????????? | | ???????????##= # [@ #######?????????????? | | ????????????# !=# = #= ####??????????? | | ????????????# ]%# ] [= #????? | | ???????????## r%"""" == #g #????? | | ???????????#; =#! [[[u # ### g##### #????? | | ???????????## [#="[[[] ###??? ##?????????????? | | ???????????#" " """""" #????? #??????????????? | | ???????????#" # #?????? #??????????????? | | ???????????## ###########?????? #??????????????? | | ????????????#####?????????????????#??????????????? | | ?????????????????????????????????????????????????? | | ?????????????????????????????????????????????????? | | ?????????????????????????????????????????????????? | | ?????????????????????????????????????????????????? | | ?????????????????????????????????????????????????? | | ?????????????????????????????????????????????????? | | ?????????????????????????????????????????????????? | | ?????????????????????????????????????????????????? | | ?????????????????????????????????????????????????? | | ?????????????????????????????????????????????????? | | ?????????????????????????????????????????????????? | | ?????????????????????????????????????????????????? | | ?????????????????????????????????????????????????? | | ?????????????????????????????????????????????????? | | ?????????????????????????????????????????????????? | +----------------------------------------------------+ Best States ------------- Heat Dissipation 31 Energy Generation 27 Energy Capacity 350 Matter Stores 400 Matter Capacity 400 Sight Range 16 Robot Scan Range 20 Terrain Scan Density 10 Additional Mass Support 9 Armor Coverage 225 Evasion (%) 56 Recoil Reduction 2 Offensive Hacking 10 Authchip Count 1 Item Schematics ----------------- Arm. Huge Wheel | -8/Materials | Scanalyzed Imp. Grenade Launcher | -8/Materials | Scanalyzed Robot Schematics ------------------ None Fabricated ------------ Nothing Alien Tech Used ----------------- None Achievements -------------- None Challenges ------------ None Game ------ Seed PiercingFlakShearcannon Manual? 0 Play Time 01:02:34 Cumulative 17.1 hours Start 2024.04.04 @ 22:55:05 End 2024.04.05 @ 00:58:19 Sessions 3 Manual Loads 0 Difficulty Rogue Special Mode None Game No. 17 Rogue 8 Adventurer 9 Explorer 0 Win Type - Total 0 Types 0/0/0/0/0/0/0/0/0 Lore% 19 Gallery% 28 Achievement% 23 Wizard Run 0 Options --------- Layout 1 ASCII 0 Keyboard 0 Movement Mouse Keybinds 0 Fullscreen 1 Font 24/Smallcaps Map View 50x35 Zoom Use 0% Tactical HUD 0 Map Filters NONE Filters NONE Steam 1 RUN: 605c4d4a-8596-4f24-8c8b-0cd91506f282